bitfinex-derivatives/quotes_SOLF0:USTF0_20251219
["timestamp","ask_amount","ask_price","bid_price","bid_amount"]
[1766108553665,7.08,117.98,117.91,14.737]
[1766108554565,14.7133,117.97,117.91,14.737]
[1766108554866,0.05915937,117.95,117.93,0.0638542]
[1766108585579,7.02915937,117.95,117.88,7.01]
[1766108585886,6.97,117.94,117.88,7.01]
[1766108586677,0.05526621,117.92,117.9,0.06497092]
[1766108593391,2.76268672,117.95,117.9,6.75497092]
[1766108593588,9.78268672,117.95,117.9,6.75497092]
[1766108594092,7.02,117.94,117.9,0.06497092]
[1766108594390,7.08156345,117.93,117.9,0.06497092]
[1766108596491,14.71736345,117.93,117.9,0.06497092]
[1766108598493,0.06156345,117.93,117.9,0.06497092]
[1766108599795,7.69746345,117.93,117.9,0.06497092]
[1766108599995,14.71746345,117.93,117.9,0.06497092]
[1766108605399,0.06156345,117.93,117.9,6.75497092]
[1766108608302,7.08156345,117.93,117.9,0.00497092]
[1766108609807,14.71736345,117.93,117.9,0.00497092]
[1766108610304,0.06156345,117.93,117.9,0.00497092]
[1766108610900,7.08156345,117.93,117.9,0.00497092]
[1766108612607,14.71746345,117.93,117.9,0.00497092]
[1766108612804,7.02,117.92,117.85,6.69]
[1766108613296,7.6372,117.91,117.85,14.3309]
[1766108613497,7.6372,117.91,117.86,6.69]
[1766108613700,0.05363524,117.9,117.87,0.06540864]
[1766108620816,0.05363524,117.9,117.87,6.75540864]
[1766108621608,0.05363524,117.9,117.87,14.39500864]
[1766108621814,7.02,117.94,117.87,6.75540864]
[1766108622018,7.02,117.94,117.87,6.69]
[1766108622618,14.6553,117.94,117.88,7.639]
[1766108622818,0.06133651,117.92,117.9,0.05751929]
[1766108631617,118.7118,118.0,117.9,7.40751929]
[1766108631819,6.91,117.98,117.9,7.35]
[1766108632727,0.06225835,117.95,117.93,0.05937649]
[1766108636838,0.06225835,117.95,117.9,7.35]
[1766108636839,6.97225835,117.95,117.9,7.35]
[1766108637939,6.97225835,117.95,117.91,0.05986895]
[1766108639731,14.60675835,117.95,117.91,0.05986895]
[1766108642345,6.97225835,117.95,117.91,0.05986895]
[1766108643741,0.06225835,117.95,117.91,7.40986895]
[1766108644743,0.06225835,117.95,117.92,7.6364]
[1766108647247,0.06225835,117.95,117.92,14.9864]
[1766108649947,0.06225835,117.95,117.92,7.35]
[1766108650147,0.06225835,117.95,117.91,0.05986895]
[1766108650349,0.06225835,117.95,117.91,7.40986895]
[1766108656350,0.06225835,117.95,117.92,7.35]
[1766108661467,14.8223,117.99,117.92,7.35]
[1766108662566,0.06127997,117.97,117.94,7.69362943]
[1766108666753,0.00127997,117.97,117.94,15.04362943]
[1766108667064,50.64,118.0,117.96,7.35]
[1766108667263,7.19,118.01,117.96,7.35]
[1766108667854,0.05825301,118.0,117.97,0.05600737]
[1766108678465,7.6299,118.03,117.97,7.40600737]
[1766108678662,7.19,118.03,117.97,7.40600737]
[1766108678864,50.6,118.04,117.97,7.40600737]
[1766108679070,58.2287,118.04,117.98,7.35]
[1766108679471,0.05839445,118.02,118.0,0.05706254]
[1766108681777,0.05839445,118.02,117.96,7.35]
[1766108681778,7.19,118.01,117.96,7.35]
[1766108682677,7.19,118.01,117.94,6.66]
[1766108682879,0.06154454,117.99,117.97,0.05987379]
[1766108690483,7.69364454,117.99,117.97,0.05987379]
[1766108693285,14.44364454,117.99,117.94,6.66]
[1766108694484,14.44364454,117.99,117.95,0.05741139]
[1766108696388,14.3827,117.98,117.95,0.05741139]
[1766108705390,6.91,117.97,117.92,10.39608499]
[1766108705584,6.91,117.96,117.91,14.6469]
[1766108705789,6.91,117.96,117.91,7.01]
[1766108706489,0.05610184,117.95,117.92,0.05543242]
[1766108706795,6.96610184,117.95,117.92,0.05543242]
[1766108709489,6.91,117.94,117.89,7.6384]
[1766108710089,14.5452,117.94,117.88,17.40868499]
[1766108710294,6.91,117.93,117.88,17.40868499]
[1766108710499,0.05642526,117.92,117.89,0.0550598]
[1766108711191,0.05642526,117.92,117.89,14.4530598]
[1766108711494,6.79,117.95,117.9,6.76]
[1766108712293,0.06363552,117.94,117.9,6.76]
[1766108713596,0.06363552,117.94,117.91,14.767]
[1766108715095,0.06363552,117.94,117.91,7.13]
[1766108717389,0.06363552,117.94,117.91,14.767]
[1766108726306,6.63,117.98,117.92,7.13]
[1766108726610,6.63,117.98,117.93,7.13]
[1766108727415,0.06188443,117.97,117.94,0.05811914]
[1766108733314,6.69188443,117.97,117.94,0.05811914]
[1766108734821,9.45156942,117.97,117.94,0.05811914]
[1766108735322,17.08486942,117.97,117.94,0.05811914]
[1766108738123,9.45156942,117.97,117.94,0.05811914]
[1766108738426,6.69188443,117.97,117.94,0.05811914]
[1766108740129,6.63,117.96,117.89,7.13]
[1766108740327,6.63,117.96,117.9,7.13]
[1766108741024,6.63,117.96,117.91,7.13]
[1766108741328,0.05377155,117.95,117.92,0.05607199]
[1766108741527,0.05377155,117.95,117.92,7.18607199]
[1766108741924,14.2626,117.98,117.93,7.13]
[1766108743028,0.060601,117.97,117.94,0.05407877]
[1766108743224,0.060601,117.97,117.94,6.86407877]
[1766108743429,6.7,118.0,117.94,6.86407877]
[1766108744328,0.06126495,117.98,117.94,6.86407877]
[1766108744632,0.06126495,117.98,117.94,14.49907877]
[1766108746830,11.01402781,118.03,117.95,6.81]
[1766108747033,6.7,118.03,117.96,6.81]
[1766108747838,6.7,118.03,117.95,118.7574]
[1766108747839,0.05481158,118.01,117.98,0.06400525]
[1766108754237,0.05481158,118.01,117.98,6.87400525]
[1766108754626,0.05481158,118.01,117.98,0.06400525]
[1766108755326,6.75481158,118.01,117.98,0.06400525]
[1766108755532,6.75481158,118.01,117.94,6.81]
[1766108756041,14.332,117.99,117.94,6.81]
[1766108756443,0.06186268,117.98,117.95,0.06162272]
[1766108757738,6.7,118.04,117.95,6.87162272]
[1766108757939,6.7,118.04,117.97,6.81]
[1766108758942,0.05828538,118.02,117.99,0.06143922]
[1766108772645,0.05828538,118.02,117.95,7.6339]
[1766108772646,6.82828538,118.02,117.95,7.6339]
[1766108772846,6.77,118.02,117.95,7.6339]
[1766108773448,0.06213852,118.0,117.97,0.05631037]
[1766108773649,6.67213852,118.0,117.94,7.6351]
[1766108773847,6.61,118.0,117.94,7.6351]
[1766108774449,14.2414,118.0,117.94,14.2351]
[1766108774636,0.06156365,117.98,117.94,14.2351]
[1766108774837,0.06156365,117.98,117.96,0.05833024]
[1766108779254,0.00156365,117.98,117.96,6.65833024]
[1766108780448,0.00156365,117.98,117.96,14.29213024]
[1766108791466,0.00156365,117.98,117.96,7.69213024]
[1766108791652,6.61156365,117.98,117.92,6.6]
[1766108792763,6.61156365,117.98,117.94,0.05404417]
[1766108792965,0.00156365,117.98,117.94,6.65404417]
[1766108793266,0.00156365,117.98,117.95,14.2345]
[1766108793863,0.00156365,117.98,117.95,6.6]
[1766108794065,0.00156365,117.98,117.94,0.05404417]
[1766108794667,0.00156365,117.98,117.94,6.65404417]
[1766108796063,0.00156365,117.98,117.94,14.28894417]
[1766108797369,0.00156365,117.98,117.94,0.05404417]
[1766108797557,6.61,117.96,117.89,6.6]
[1766108797761,6.61,117.94,117.87,6.6]
[1766108797959,6.61,117.93,117.87,6.6]
[1766108798565,0.05363172,117.91,117.89,0.05407358]
[1766108800471,18.55902781,117.95,117.89,0.05407358]
[1766108800665,14.245,117.95,117.89,0.05407358]
[1766108801470,6.61,117.94,117.89,0.05407358]
[1766108801669,0.06099262,117.93,117.89,0.05407358]
[1766108801868,6.67099262,117.93,117.89,0.05407358]
[1766108808181,6.67099262,117.93,117.89,7.69247358]
[1766108808374,0.06099262,117.93,117.89,14.82247358]
[1766108811581,6.78099262,117.93,117.89,0.05407358]
[1766108811778,9.54511455,117.93,117.89,0.00407358]
[1766108811978,6.72,117.92,117.89,0.00407358]
[1766108815286,14.3566,117.92,117.89,0.00407358]
[1766108815785,14.3573,117.91,117.89,0.00407358]
[1766108815975,6.72,117.9,117.84,7.13]
[1766108816181,6.72,117.89,117.82,9.14261349]
[1766108816381,2.76412193,117.9,117.82,7.13]
[1766108816382,14.3593,117.88,117.82,7.13]
[1766108816883,0.05772481,117.86,117.84,0.06465901]
[1766108817282,9.48412193,117.91,117.84,7.19465901]
[1766108817587,6.72,117.91,117.86,7.13]
[1766108818085,2.76412193,117.93,117.86,14.7703]
[1766108818086,17.12042193,117.93,117.86,14.7703]
[1766108818586,6.78524903,117.91,117.84,7.13]
[1766108818782,6.72,117.9,117.84,7.13]
[1766108819188,6.72,117.89,117.83,2.76412193]
[1766108819379,6.72,117.89,117.82,9.89412193]
[1766108819583,6.78280592,117.87,117.84,0.06364412]
[1766108819983,14.42250592,117.87,117.84,0.06364412]
[1766108820183,6.78280592,117.87,117.84,0.06364412]
[1766108820893,0.06280592,117.87,117.84,0.06364412]
[1766108821088,0.00280592,117.87,117.84,7.19364412]
[1766108821294,9.48412193,117.93,117.86,7.13]
[1766108821494,6.72,117.93,117.87,9.89412193]
[1766108821692,64.9351,117.95,117.88,7.13]
[1766108822287,0.05977542,117.93,117.9,0.06026592]
[1766108826795,6.84977542,117.93,117.9,0.06026592]
[1766108827003,0.05977542,117.93,117.9,0.06026592]
[1766108828503,14.48557542,117.93,117.87,2.76412193]
[1766108829305,6.79,117.92,117.87,2.76412193]
[1766108829604,6.79,117.92,117.88,0.05838668]
[1766108831401,14.4266,117.92,117.88,0.05838668]
[1766108832701,6.85,117.91,117.88,0.05838668]
[1766108833405,14.4871,117.91,117.88,0.05838668]
[1766108835699,7.6378,117.9,117.85,2.76412193]
[1766108835901,7.6378,117.9,117.85,9.57412193]
[1766108836307,6.85,117.91,117.85,17.21502193]
[1766108836701,0.05568509,117.89,117.87,0.06460287]
[1766108838198,68.21932743,118.35,117.88,6.81]
[1766108838199,9.61412193,117.96,117.88,6.81]
[1766108838402,6.85,117.95,117.89,2.76412193]
[1766108839207,0.05814867,117.93,117.91,0.05758823]
[1766108839708,14.4838,117.97,117.91,9.63171016]
[1766108840605,0.06161126,117.95,117.91,17.26861016]
[1766108842810,0.06161126,117.95,117.91,14.50448823]
[1766108843210,0.06161126,117.95,117.91,6.86758823]
[1766108846013,57.43,117.99,117.92,17.21052193]
[1766108847106,0.05913723,117.97,117.94,0.06224351]
[1766108847615,6.90913723,117.97,117.94,0.06224351]
[1766108848713,14.54243723,117.97,117.94,0.06224351]
[1766108850014,14.4839,117.96,117.94,0.00224351]
[1766108850614,14.4839,117.96,117.89,60.15412193]
[1766108850814,7.6346,117.95,117.9,6.81]
[1766108851016,6.85,117.97,117.9,6.81]
[1766108851721,0.05411136,117.95,117.92,0.05870186]
[1766108851922,0.05411136,117.95,117.92,6.86870186]
[1766108853521,0.05411136,117.95,117.92,0.05870186]
[1766108856725,0.00411136,117.95,117.92,6.86870186]
[1766108856927,6.85411136,117.95,117.92,0.05870186]
[1766108859429,0.00411136,117.95,117.92,0.05870186]
[1766108871341,0.00411136,117.95,117.89,6.84]
[1766108871733,0.00411136,117.95,117.91,6.84]
[1766108872340,0.00411136,117.95,117.92,0.05758206]
[1766108884662,6.81,117.94,117.88,50.56]
[1766108884954,6.81,117.94,117.85,11.18668302]
[1766108885249,6.81,117.94,117.85,6.87]
[1766108885650,6.86735851,117.91,117.88,0.06133285]
[1766108886043,6.86735851,117.91,117.88,0.00133285]
[1766108886851,14.50445851,117.91,117.88,0.00133285]
[1766108887042,6.81,117.9,117.84,50.56]
[1766108888043,0.05805004,117.88,117.86,0.06440063]
[1766108891149,6.86805004,117.88,117.86,0.00440063]
[1766108893756,7.17,117.87,117.82,7.6428]
[1766108894843,7.17,117.87,117.83,0.05578389]
[1766108898157,0.05805004,117.88,117.83,7.20578389]
[1766108899673,0.05805004,117.88,117.85,7.6407]
[1766108901255,0.05805004,117.88,117.86,7.6403]
[1766108901562,7.17,117.91,117.86,7.70528598]
[1766108902459,0.05957121,117.9,117.86,7.70528598]
[1766108902958,14.86757121,117.9,117.86,0.00498598]
[1766108903162,7.17,117.89,117.86,0.00498598]
[1766108904264,14.8084,117.89,117.86,0.00498598]
[1766108905558,7.17,117.88,117.86,0.00498598]
[1766108912264,0.05957121,117.9,117.86,0.00498598]
[1766108912470,7.22957121,117.9,117.86,0.00498598]
[1766108914170,7.17,117.88,117.86,0.00498598]
[1766108919670,14.8084,117.89,117.86,0.00498598]
[1766108924785,0.05957121,117.9,117.86,6.79498598]
[1766108925386,6.98957121,117.9,117.86,0.00498598]
[1766108933196,14.62737121,117.9,117.86,0.00498598]
[1766108936801,6.93,117.89,117.86,0.00498598]
[1766108937800,6.93,117.89,117.81,9.55501779]
[1766108938800,0.06266842,117.86,117.84,0.06461701]
[1766108944398,6.76266842,117.86,117.84,0.00461701]
[1766108945800,0.06266842,117.86,117.84,0.00461701]
[1766108947406,0.06266842,117.86,117.84,7.64621701]
[1766108949501,14.3384,117.9,117.84,15.04621701]
[1766108949706,14.3384,117.9,117.85,7.4]
[1766108950103,15.81366639,117.92,117.86,7.4]
[1766108950406,6.7,117.92,117.86,7.4]
[1766108950606,0.06317535,117.9,117.88,0.06509068]
[1766108952808,0.06317535,117.9,117.86,7.4]
[1766108953214,0.06317535,117.9,117.85,10.40561779]
[1766108953215,6.89317535,117.9,117.84,57.63]
[1766108953606,14.53097535,117.9,117.84,57.63]
[1766108953807,14.53097535,117.9,117.86,0.04981491]
[1766108954003,14.469,117.89,117.84,7.05]
[1766108954206,6.83,117.88,117.82,7.05]
[1766108954707,6.83,117.87,117.82,7.05]
[1766108955107,0.05590862,117.86,117.82,7.05]
[1766108957107,0.05590862,117.86,117.8,50.56]
[1766108957108,6.88590862,117.86,117.8,7.05]
[1766108957299,6.88590862,117.86,117.8,9.81501779]
[1766108958204,6.88590862,117.86,117.81,7.05]
[1766108958400,0.05590862,117.86,117.81,7.05]
[1766108959605,0.05590862,117.86,117.82,7.6427]
[1766108962017,0.05590862,117.86,117.82,14.6927]
[1766108962714,0.05590862,117.86,117.82,7.05]
[1766108964324,6.88590862,117.86,117.78,14.6949]
[1766108964523,0.06369859,117.83,117.78,9.81501779]
[1766108964725,0.06369859,117.83,117.78,7.05]
[1766108965118,0.06369859,117.83,117.78,14.6954]
[1766108965424,0.06369859,117.83,117.79,7.05]
[1766108970228,0.06369859,117.83,117.79,14.6949]
[1766108970422,0.06369859,117.83,117.8,7.05]
[1766108971026,6.83,117.88,117.81,7.05]
[1766108971223,6.83,117.86,117.79,9.81501779]
[1766108972129,0.05432479,117.84,117.81,0.06285443]
[1766108972631,6.88432479,117.84,117.81,0.00285443]
[1766108973933,0.05432479,117.84,117.81,0.00285443]
[1766108975230,6.88432479,117.84,117.81,0.00285443]
[1766108976124,6.83,117.83,117.76,7.05]
[1766108976320,6.83,117.8,117.74,7.648]
[1766108976526,6.83,117.8,117.73,9.81501779]
[1766108976527,6.83,117.8,117.73,7.05]
[1766108977132,0.06053908,117.78,117.73,7.05]
[1766108977637,2.76501779,117.76,117.67,7.05]
[1766108977833,2.76501779,117.75,117.67,7.05]
[1766108978134,2.81948108,117.73,117.67,7.05]
[1766108978445,2.81948108,117.73,117.65,7.05]
[1766108978738,0.06441151,117.7,117.65,7.05]
[1766108979329,0.06441151,117.7,117.63,65.285]
[1766108979529,119.08021151,117.7,117.58,119.1317]
[1766108979735,0.06131483,117.65,117.58,7.05]
[1766108980344,53.34501779,117.67,117.58,7.05]
[1766108980345,50.58,117.69,117.62,7.05]
[1766108980540,50.58,117.72,117.63,2.76501779]
[1766108980835,2.76501779,117.73,117.66,7.05]
[1766108981030,53.34501779,117.75,117.66,7.05]
[1766108981230,172.30661779,117.75,117.66,7.05]
[1766108981431,0.06100675,117.7,117.63,126.1303]
[1766108981733,118.9236,117.79,117.6,50.6]
[1766108981734,1.02,117.76,117.68,7.05]
[1766108982036,2.76501779,117.78,117.71,9.81501779]
[1766108982338,2.76501779,117.81,117.73,2.76501779]
[1766108982640,50.6,117.85,117.77,10.19501779]
[1766108982842,50.6,117.85,117.78,7.43]
[1766108983139,50.6,117.85,117.76,7.43]
[1766108983437,2.76501779,117.84,117.76,7.43]
[1766108983634,0.06096487,117.81,117.79,0.06405366]
[1766108983834,0.06096487,117.81,117.79,0.00405366]
[1766108984033,2.76501779,117.8,117.73,7.43]
[1766108984733,2.76501779,117.8,117.73,10.19501779]
[1766108984929,2.76501779,117.81,117.73,10.19501779]
[1766108985136,0.061798,117.78,117.76,0.06240371]
[1766108985535,0.061798,117.78,117.76,0.00240371]
[1766108992244,0.001798,117.78,117.76,0.00240371]
[1766108994834,0.001798,117.78,117.76,7.43240371]
[1766108995339,0.001798,117.78,117.76,0.00240371]
[1766108997446,50.6,117.82,117.76,0.00240371]
[1766108997748,50.6,117.82,117.76,7.43240371]
[1766108998449,0.00193596,117.8,117.76,7.43240371]
[1766109000044,0.00193596,117.8,117.76,15.07910371]
[1766109000550,0.00193596,117.8,117.76,7.43240371]
[1766109001046,58.0,117.86,117.78,7.43]
[1766109001244,50.6,117.86,117.79,7.43]
[1766109001444,50.6,117.86,117.8,7.43]
[1766109001649,15.0386,117.89,117.8,7.43]
[1766109001845,0.05462652,117.86,117.83,0.06268925]
[1766109004155,50.58,117.9,117.83,7.40268925]
[1766109004339,7.3,117.92,117.83,7.40268925]
[1766109004540,7.3,117.92,117.83,7.34]
[1766109005251,0.06037523,117.89,117.86,0.05609018]
[1766109006650,7.36037523,117.89,117.8,7.34]
[1766109006850,7.3,117.87,117.77,57.92]
[1766109007059,7.3,117.87,117.74,7.34]
[1766109007060,14.9424,117.83,117.74,7.34]
[1766109007257,14.9424,117.83,117.75,14.987]
[1766109007557,0.06198889,117.8,117.78,0.06091021]
[1766109010969,6.56606633,117.85,117.78,0.06091021]
[1766109011253,7.3,117.86,117.79,7.6448]
[1766109011952,0.065262,117.84,117.81,0.06087018]
[1766109012759,50.58,117.88,117.81,7.60087018]
[1766109013248,7.77,117.87,117.81,0.06087018]
[1766109013652,7.77,117.87,117.81,0.00087018]
[1766109014655,0.06228533,117.85,117.81,0.00087018]
[1766109015556,7.83228533,117.85,117.81,0.00087018]
[1766109017155,0.06228533,117.85,117.81,7.64427018]
[1766109019954,0.06228533,117.85,117.81,15.18427018]
[1766109020265,0.06228533,117.85,117.82,7.6429]
[1766109022157,50.58,117.88,117.83,7.6422]
[1766109023362,0.05834454,117.87,117.84,0.0539437]
[1766109025456,7.77,117.91,117.84,15.2355437]
[1766109025762,6.56606633,117.92,117.85,7.54]
[1766109025948,7.77,117.93,117.85,7.54]
[1766109026150,6.56606633,117.94,117.87,7.54]
[1766109026349,6.56606633,117.93,117.87,7.54]
[1766109026548,15.4049,117.95,117.89,0.06303573]
[1766109026549,0.06161906,117.92,117.89,0.06303573]
[1766109031064,0.00161906,117.92,117.89,7.60303573]
[1766109031270,6.57354304,117.95,117.89,7.60303573]
[1766109031470,59.73470884,117.96,117.89,7.60303573]
[1766109031869,59.73470884,117.96,117.9,7.6377]
[1766109032072,66.30825188,117.96,117.89,7.54]
[1766109032371,0.05508309,117.94,117.92,0.00448594]
[1766109041469,1.40470884,117.96,117.92,0.00448594]
[1766109041872,7.77,117.98,117.92,0.00448594]
[1766109042474,0.05929481,117.96,117.92,7.54448594]
[1766109043875,0.05929481,117.96,117.92,15.18088594]
[1766109044465,50.54,118.0,117.93,7.6356]
[1766109044466,58.65,118.0,117.93,7.6356]
[1766109044670,8.11,118.0,117.93,7.98]
[1766109045379,0.06404986,117.98,117.95,0.06009864]
[1766109048078,8.17404986,117.98,117.95,0.06009864]
[1766109048977,0.06404986,117.98,117.95,0.06009864]
[1766109049875,0.06404986,117.98,117.95,7.69449864]
[1766109051768,9.58538899,118.03,117.96,7.98]
[1766109051972,8.11,118.03,117.96,7.98]
[1766109052178,8.11,118.03,117.97,7.98]
[1766109052971,0.05753128,118.01,117.99,0.05617089]
[1766109053580,8.16753128,118.01,117.94,2.7595895]
[1766109053777,8.11,117.97,117.9,7.98]
[1766109054484,0.06035899,117.95,117.92,0.05810378]
[1766109055076,0.00035899,117.95,117.92,15.67430378]
[1766109055277,2.7595895,117.99,117.92,129.58519328]
[1766109055484,2.7595895,117.99,117.92,129.5270895]
[1766109055679,2.7595895,117.99,117.95,7.6345]
[1766109055882,8.11,118.0,117.95,7.6345]
[1766109056068,8.11,118.0,117.93,118.7777]
[1766109056274,10.8695895,118.03,117.98,7.6325]
[1766109057280,0.06505962,118.02,117.99,0.00422305]
[1766109058583,8.17505962,118.02,117.99,0.00422305]
[1766109060884,10.8695895,118.01,117.96,7.6334]
[1766109061686,8.11,118.0,117.96,7.6334]
[1766109061883,0.05800307,117.99,117.96,7.6334]
[1766109062490,0.05800307,117.99,117.97,7.6332]
[1766109062993,8.11,118.02,117.97,0.0595063]
[1766109063987,0.06523376,118.01,117.97,0.0595063]
[1766109064586,50.52,118.04,117.98,9.11]
[1766109064888,11.1095895,118.07,117.99,127.8246]
[1766109065273,8.35,118.07,118.0,130.5782895]
[1766109065477,8.35,118.07,118.0,127.8187]
[1766109065680,0.05678821,118.05,118.02,0.06195759]
[1766109066188,0.05678821,118.05,118.03,7.6292]
[1766109067084,8.40678821,118.05,118.02,0.00195759]
[1766109067480,0.05678821,118.05,118.02,0.00195759]
[1766109067989,0.05678821,118.05,118.02,7.63185759]
[1766109069387,0.05678821,118.05,118.02,0.00195759]
[1766109072291,0.05678821,118.05,118.02,7.63175759]
[1766109072487,8.35,118.09,118.02,9.11195759]
[1766109073394,0.06403802,118.07,118.02,9.11195759]
[1766109073596,0.06403802,118.07,118.03,7.6292]
[1766109078606,0.06403802,118.07,118.04,7.6284]
[1766109081006,50.5,118.1,118.05,9.24]
[1766109082108,0.06153541,118.09,118.06,0.06518459]
[1766109082503,8.87153541,118.09,118.06,0.06518459]
[1766109082709,8.87153541,118.09,118.04,7.6284]
[1766109083710,8.87153541,118.09,118.05,0.05663328]
[1766109087913,8.87153541,118.09,118.02,7.6297]
[1766109088218,8.81,118.05,117.97,2.75701044]
[1766109088413,11.56701044,118.04,117.97,2.75701044]
[1766109088613,8.81,118.04,117.97,2.75701044]
[1766109088915,11.56701044,118.04,117.97,2.75701044]
[1766109089117,0.06297079,118.02,117.99,0.062151]
[1766109089713,0.06297079,118.02,117.99,7.693951]
[1766109091114,0.06297079,118.02,117.99,12.05916144]
[1766109092017,11.56701044,118.06,118.01,7.6305]
[1766109092218,8.81,118.09,118.01,11.99701044]
[1766109092618,8.81,118.09,118.01,130.69271044]
[1766109093121,0.06225143,118.06,118.04,0.0583245]
[1766109093419,8.81,118.09,118.04,0.0583245]
[1766109094421,0.06279891,118.08,118.04,0.0583245]
[1766109094622,0.06279891,118.08,118.05,7.628]
[1766109098619,2.9305078,118.11,118.06,16.8673]
[1766109098827,11.56701044,118.16,118.08,9.24]
[1766109099022,2.75701044,118.22,118.15,9.24]
[1766109099218,2.75701044,118.24,118.15,9.24]
[1766109099418,8.81,118.23,118.16,2.75701044]
[1766109099615,8.8638471,118.21,118.18,0.00416808]
[1766109099815,8.8638471,118.21,118.08,118.6261]
[1766109099816,8.81,118.19,118.09,127.8569]
[1766109100127,8.81,118.19,118.12,9.24]
[1766109100323,8.81,118.22,118.14,9.24]
[1766109100532,8.81,118.22,118.15,130.55361044]
[1766109100825,0.05414776,118.2,118.17,2.81068361]
[1766109101025,1.47261071,118.24,118.17,12.05068361]
[1766109101223,8.81,118.25,118.18,7.6194]
[1766109101528,1.47236149,118.27,118.2,127.7471]
[1766109101824,1.43582803,118.29,118.21,246.2269]
[1766109102123,0.06323455,118.26,118.24,0.05701486]
[1766109102720,0.06323455,118.26,118.18,127.4077]
[1766109102920,9.15,118.27,118.19,127.3974]
[1766109103926,0.0588265,118.24,118.22,0.06371325]
[1766109105424,1.43582803,118.29,118.22,0.06371325]
[1766109105623,10.58582803,118.29,118.22,0.06371325]
[1766109106525,0.05910548,118.27,118.22,0.06371325]
[1766109106725,1.47192556,118.31,118.23,127.3559]
[1766109106925,10.62192556,118.31,118.23,8.88]
[1766109107732,0.05673088,118.28,118.26,0.05669928]
[1766109108431,9.15,118.31,118.26,0.05669928]
[1766109108630,10.62155211,118.34,118.26,16.55089928]
[1766109108834,10.62155211,118.34,118.26,16.4942]
[1766109109427,0.04869649,118.31,118.29,0.05960926]
[1766109109627,9.15,118.34,118.29,0.05960926]
[1766109110532,9.15,118.34,118.26,8.88]
[1766109110732,9.15,118.37,118.28,127.307]
[1766109110928,9.15,118.37,118.31,7.611]
[1766109111235,9.15,118.37,118.29,127.2943]
[1766109111436,0.05960926,118.34,118.32,0.05695988]
[1766109112943,9.15,118.37,118.32,0.05695988]
[1766109116340,9.15,118.37,118.29,8.88]
[1766109117337,50.4,118.38,118.32,0.0048804]
[1766109117338,0.05535482,118.34,118.32,0.0048804]
[1766109117745,10.90535482,118.34,118.24,118.4667]
[1766109117945,9.15,118.34,118.27,7.6133]
[1766109118140,9.15,118.34,118.24,8.88]
[1766109118846,0.05410934,118.3,118.28,0.05661753]
[1766109121050,0.05410934,118.3,118.24,16.4956]
[1766109121254,9.20410934,118.3,118.24,7.6156]
[1766109121738,9.20410934,118.3,118.25,7.6149]
[1766109122039,9.15,118.33,118.26,0.05360968]
[1766109122236,9.15,118.33,118.28,0.06298228]
[1766109122442,0.06018229,118.31,118.28,0.06298228]
[1766109122640,9.21,118.35,118.28,128.04528228]
[1766109122856,9.21,118.37,118.29,127.9763]
[1766109123739,0.06208454,118.34,118.32,0.06328501]
[1766109125849,9.21,118.37,118.32,0.06328501]
[1766109126941,0.04619098,118.36,118.32,0.06328501]
[1766109127142,9.25619098,118.36,118.32,0.00328501]
[1766109127344,9.25619098,118.36,118.26,59.92]
[1766109127555,9.21,118.36,118.26,59.92]
[1766109128452,0.05619205,118.32,118.3,0.0628659]
[1766109128653,0.06396715,118.32,118.3,0.05483499]
[1766109133358,9.75,118.37,118.3,0.05483499]
[1766109133759,9.75,118.37,118.3,7.66673499]
[1766109134260,0.04550884,118.35,118.3,7.66673499]
[1766109137866,0.04550884,118.35,118.31,7.6111]
[1766109138670,50.4,118.38,118.32,17.0004]
[1766109139562,50.4,118.38,118.34,0.06063817]
[1766109153886,60.15,118.38,118.34,0.06063817]
[1766109154083,60.15,118.38,118.3,9.39]
[1766109154084,9.75,118.37,118.3,9.39]
[1766109154887,9.75,118.37,118.28,9.39]
[1766109155087,0.06063817,118.34,118.31,0.05937699]
[1766109156087,0.06063817,118.34,118.29,7.6125]
[1766109156088,9.81063817,118.34,118.29,7.6125]